[Event "Djerba Festival Blitz 2025"]
[Site "Djerba"]
[Date "2025.02.21"]
[Round "8.36"]
[White "Farouz, Paul"]
[Black "Mathanchandaran, Dev"]
[Result "1-0"]
[ECO "C25"]
[WhiteElo "1680"]
[BlackElo "1650"]
[PlyCount "83"]
[EventDate "2025.02.15"]
[EventType "swiss"]
[EventCountry "TUN"]
[TimeControl "180+3"]

1. e4 {[%emt 0:03:06]} e5 {[%emt 0:03:06]} 2. Nc3 {[%emt 0:00:03]} Nc6 {[%emt 0:00:03]} 3. Bc4 {[%emt 0:00:03]} Bc5 {[%emt 0:00:03]} 4. Qg4 {[%emt 0:00:03]} Qf6 {[%emt 0:00:03]} 5. Nd5 Qxf2+ {[%emt 0:00:03]} 6. Kd1 {[%emt 0:00:06]} Kf8 {[%emt 0:00:03]} 7. Nh3 Qd4 {[%emt 0:00:03]} 8. d3 {[%emt 0:00:06]} d6 {[%emt 0:00:03]} 9. Qf3 {[%emt 0:00:03]} Bb4 {[%emt 0:00:03]} 10. c3 {[%emt 0:00:03]} Bxc3 {[%emt 0:00:03]} 11. bxc3 Qc5 {[%emt 0:00:03]} 12. Rf1 {[%emt 0:00:06]} f6 {[%emt 0:00:03]} 13. Ng5 {[%emt 0:00:03]} b5 {[%emt 0:00:03]} 14. Nxc7 {[%emt 0:00:03]} Ke7 {[%emt 0:00:03]} 15. Bxg8 {[%emt 0:00:03]} Rxg8 16. Nxh7 Kd7 {[%emt 0:00:06]} 17. Nd5 {[%emt 0:00:06]} b4 {[%emt 0:00:03]} 18. Nhxf6+ {[%emt 0:00:03]} gxf6 {[%emt 0:00:03]} 19. Nxf6+ {[%emt 0:00:03]} Kc7 20. Nxg8 {[%emt 0:00:03]} bxc3 {[%emt 0:00:06]} 21. Qf7+ {[%emt 0:00:03]} Kb6 22. Rb1+ Ka6 23. Qc4+ {[%emt 0:00:06]} Qxc4 {[%emt 0:00:09]} 24. dxc4 {[%emt 0:00:03]} Bg4+ 25. Kc2 Na5 26. Nf6 Be6 27. Nd5 {[%emt 0:00:09]} Bxd5 {[%emt 0:00:12]} 28. cxd5 {[%emt 0:00:03]} Rc8 {[%emt 0:00:03]} 29. Rb4 {[%emt 0:00:03]} Rc7 {[%emt 0:00:03]} 30. Be3 {[%emt 0:00:03]} Nb7 {[%emt 0:00:03]} 31. Rfb1 {[%emt 0:00:03]} Nc5 {[%emt 0:00:03]} 32. Bxc5 {[%emt 0:00:03]} Rxc5 {[%emt 0:00:03]} 33. h4 {[%emt 0:00:03]} Rc7 {[%emt 0:00:03]} 34. g3 Rg7 35. Rg1 {[%emt 0:00:06]} Ka5 {[%emt 0:00:06]} 36. Kxc3 Rg4 37. Rc4 {[%emt 0:00:06]} Kb6 {[%emt 0:00:06]} 38. Rc6+ {[%emt 0:00:03]} Kb7 {[%emt 0:00:03]} 39. Kd3 {[%emt 0:00:03]} a6 {[%emt 0:00:03]} 40. Rb1+ {[%emt 0:00:03]} Ka7 {[%emt 0:00:03]} 41. Rg1 {[%emt 0:00:03]} a5 {[%emt 0:00:03]} 42. Rxd6 {[%emt 0:00:03]} 1-0

[Event "Djerba Festival Blitz 2025"]
[Site "Djerba"]
[Date "2025.02.21"]
[Round "8.37"]
[White "Chabbouh, Mohamed Rayen"]
[Black "Kolodner, Garry"]
[Result "0-1"]
[ECO "E61"]
[WhiteElo "1518"]
[BlackElo "1697"]
[PlyCount "88"]
[EventDate "2025.02.15"]
[EventType "swiss"]
[EventCountry "TUN"]
[TimeControl "180+3"]

1. d4 {[%emt 0:03:06]} g6 {[%emt 0:00:04]} 2. c4 {[%emt 0:00:00]} Bg7 {[%emt 0:00:02]} 3. Nc3 {[%emt 0:00:00]} d6 {[%emt 0:00:02]} 4. e3 {[%emt 0:00:00]} Nf6 {[%emt 0:00:02]} 5. Nf3 {[%emt 0:00:00]} O-O {[%emt 0:00:03]} 6. Bd3 {[%emt 0:00:00]} Bg4 {[%emt 0:00:03]} 7. Be2 {[%emt 0:00:00]} Nc6 {[%emt 0:00:05]} 8. h3 {[%emt 0:00:00]} Bd7 {[%emt 0:00:05]} 9. d5 {[%emt 0:00:00]} Nb8 {[%emt 0:00:03]} 10. e4 {[%emt 0:00:00]} c6 {[%emt 0:00:03]} 11. O-O {[%emt 0:00:00]} cxd5 {[%emt 0:00:01]} 12. exd5 {[%emt 0:00:00]} Na6 {[%emt 0:00:10]} 13. Re1 {[%emt 0:00:00]} e6 {[%emt 0:00:11]} 14. Bd3 {[%emt 0:00:00]} exd5 {[%emt 0:00:06]} 15. Nxd5 {[%emt 0:00:00]} Nxd5 {[%emt 0:00:04]} 16. cxd5 {[%emt 0:00:00]} Nc5 {[%emt 0:00:02]} 17. Bc4 {[%emt 0:00:00]} b5 {[%emt 0:00:07]} 18. Bb3 {[%emt 0:00:00]} a5 {[%emt 0:00:02]} 19. a3 {[%emt 0:00:00]} a4 {[%emt 0:00:04]} 20. Ba2 {[%emt 0:00:00]} Re8 {[%emt 0:00:14]} 21. Bg5 {[%emt 0:00:00]} Qc7 {[%emt 0:00:11]} 22. Bf4 {[%emt 0:00:00]} Bxb2 {[%emt 0:00:13]} 23. Rb1 {[%emt 0:00:00]} Rxe1+ {[%emt 0:00:36]} 24. Qxe1 {[%emt 0:00:00]} Bg7 {[%emt 0:00:06]} 25. Rc1 {[%emt 0:00:00]} Bb2 {[%emt 0:00:13]} 26. Rb1 {[%emt 0:00:00]} Bxa3 {[%emt 0:00:05]} 27. Qe3 {[%emt 0:00:00]} b4 {[%emt 0:00:04]} 28. Ng5 {[%emt 0:00:00]} Re8 {[%emt 0:00:19]} 29. Qg3 {[%emt 0:00:00]} b3 {[%emt 0:00:03]} 30. Bxb3 {[%emt 0:00:00]} axb3 {[%emt 0:00:03]} 31. Bxd6 {[%emt 0:00:00]} Qb6 {[%emt 0:00:11]} 32. Qf3 {[%emt 0:00:00]} Bf5 {[%emt 0:00:03]} 33. Bxc5 {[%emt 0:00:00]} Qxc5 {[%emt 0:00:05]} 34. Rxb3 {[%emt 0:00:02]} Re1+ {[%emt 0:00:03]} 35. Kh2 {[%emt 0:00:02]} Qd6+ {[%emt 0:00:03]} 36. g3 {[%emt 0:00:03]} Bc5 {[%emt 0:00:15]} 37. Qc3 {[%emt 0:00:18]} Re2 {[%emt 0:00:08]} 38. Kh1 {[%emt 0:00:30]} Qxd5+ {[%emt 0:00:05]} 39. Qf3 {[%emt 0:00:17]} Qxf3+ {[%emt 0:00:06]} 40. Rxf3 {[%emt 0:00:05]} Rxf2 {[%emt 0:00:04]} 41. Rxf2 {[%emt 0:00:02]} Bxf2 {[%emt 0:00:03]} 42. Kg2 {[%emt 0:00:01]} Be3 {[%emt 0:00:03]} 43. Nf3 {[%emt 0:00:03]} Be4 {[%emt 0:00:02]} 44. h4 {[%emt 0:00:02]} h5 {[%emt 0:00:03]} 0-1

[Event "Djerba Festival Blitz 2025"]
[Site "Djerba"]
[Date "2025.02.21"]
[Round "8.40"]
[White "Alouani, Ahmed"]
[Black "Kammoun, Adam"]
[Result "1-0"]
[ECO "A07"]
[WhiteElo "1617"]
[BlackElo "1571"]
[PlyCount "37"]
[EventDate "2025.02.15"]
[EventType "swiss"]
[EventCountry "TUN"]
[TimeControl "180+3"]

1. Nf3 {[%emt 0:00:03]} d5 {[%emt 0:00:04]} 2. g3 {[%emt 0:00:04]} Nf6 {[%emt 0:00:03]} 3. Bg2 {[%emt 0:00:02]} Bf5 {[%emt 0:00:05]} 4. d3 {[%emt 0:00:06]} e6 {[%emt 0:00:04]} 5. O-O {[%emt 0:00:06]} c5 {[%emt 0:00:04]} 6. Bg5 {[%emt 0:00:08]} Nbd7 {[%emt 0:00:02]} 7. Nbd2 {[%emt 0:00:07]} Be7 {[%emt 0:00:02]} 8. Re1 {[%emt 0:00:05]} h6 {[%emt 0:00:02]} 9. Bxf6 {[%emt 0:00:06]} Bxf6 {[%emt 0:00:03]} 10. e4 {[%emt 0:00:10]} dxe4 {[%emt 0:00:09]} 11. Nxe4 {[%emt 0:00:09]} Bxb2 {[%emt 0:00:06]} 12. Nd6+ {[%emt 0:00:15]} Kf8 {[%emt 0:00:29]} 13. Rb1 {[%emt 0:00:04]} Qb6 {[%emt 0:00:27]} 14. Nc4 {[%emt 0:00:13]} Qa6 {[%emt 0:00:13]} 15. Rxb2 {[%emt 0:00:21]} b5 {[%emt 0:00:04]} 16. Nfe5 {[%emt 0:00:14]} Nxe5 {[%emt 0:00:16]} 17. Bxa8 {[%emt 0:00:21]} Nxc4 {[%emt 0:00:24]} 18. dxc4 {[%emt 0:00:04]} b4 {[%emt 0:00:04]} 19. Qd8# {[%emt 0:00:06]} 1-0

[Event "Djerba Festival Blitz 2025"]
[Site "Djerba"]
[Date "2025.02.21"]
[Round "8.41"]
[White "Khider, Amilia"]
[Black "El Gazzar, Ahmed"]
[Result "0-1"]
[ECO "C47"]
[WhiteElo "1524"]
[BlackElo "1667"]
[PlyCount "64"]
[EventDate "2025.02.15"]
[EventType "swiss"]
[EventCountry "TUN"]
[TimeControl "180+3"]

1. e4 {[%emt 0:00:03]} e5 {[%emt 0:00:03]} 2. Nf3 {[%emt 0:00:02]} Nc6 {[%emt 0:00:01]} 3. d4 {[%emt 0:00:02]} exd4 {[%emt 0:00:03]} 4. Nxd4 {[%emt 0:00:01]} Nf6 {[%emt 0:00:02]} 5. Nc3 {[%emt 0:00:03]} Bb4 {[%emt 0:00:02]} 6. Nxc6 {[%emt 0:00:02]} bxc6 {[%emt 0:00:02]} 7. Bd3 {[%emt 0:00:03]} d5 {[%emt 0:00:03]} 8. exd5 {[%emt 0:00:05]} cxd5 {[%emt 0:00:02]} 9. O-O {[%emt 0:00:03]} O-O {[%emt 0:00:02]} 10. Bg5 {[%emt 0:00:03]} c6 {[%emt 0:00:02]} 11. a3 {[%emt 0:00:12]} Bd6 {[%emt 0:00:04]} 12. Qf3 {[%emt 0:00:15]} h6 {[%emt 0:00:03]} 13. Bh4 {[%emt 0:00:07]} Rb8 {[%emt 0:00:04]} 14. Rab1 {[%emt 0:00:14]} Re8 {[%emt 0:00:08]} 15. b4 {[%emt 0:00:14]} Be7 {[%emt 0:00:39]} 16. Rfe1 {[%emt 0:00:27]} Ng4 {[%emt 0:00:12]} 17. Bg3 {[%emt 0:00:17]} Bd6 {[%emt 0:00:09]} 18. Rxe8+ {[%emt 0:00:02]} Qxe8 {[%emt 0:00:09]} 19. Bxd6 {[%emt 0:00:03]} Rb7 {[%emt 0:00:12]} 20. Na4 {[%emt 0:00:10]} Rd7 {[%emt 0:00:07]} 21. Bg3 {[%emt 0:00:10]} Re7 {[%emt 0:00:04]} 22. Rf1 {[%emt 0:00:22]} h5 {[%emt 0:00:10]} 23. h3 {[%emt 0:00:05]} Ne5 {[%emt 0:00:08]} 24. Bxe5 {[%emt 0:00:11]} Rxe5 {[%emt 0:00:02]} 25. Nc5 {[%emt 0:00:09]} Rg5 {[%emt 0:00:30]} 26. Qf4 {[%emt 0:00:22]} Qe7 {[%emt 0:00:07]} 27. Kh1 {[%emt 0:00:10]} Re5 {[%emt 0:00:19]} 28. c4 {[%emt 0:00:13]} dxc4 {[%emt 0:00:04]} 29. Bxc4 {[%emt 0:00:04]} Rf5 {[%emt 0:00:07]} 30. Qd2 {[%emt 0:00:08]} Kh8 {[%emt 0:00:07]} 31. Rd1 {[%emt 0:00:04]} Qe8 {[%emt 0:00:12]} 32. Qd8 {[%emt 0:00:07]} Re5 {[%emt 0:00:40]} 0-1

[Event "Djerba Festival Blitz 2025"]
[Site "Djerba"]
[Date "2025.02.21"]
[Round "8.43"]
[White "Baba, Mouadh"]
[Black "Charfeddine, Khaled"]
[Result "0-1"]
[ECO "B19"]
[WhiteElo "1688"]
[BlackElo "1908"]
[PlyCount "106"]
[EventDate "2025.02.15"]
[EventType "swiss"]
[EventCountry "TUN"]
[TimeControl "180+3"]

1. e4 {[%emt 0:03:06]} c6 {[%emt 0:03:06]} 2. d4 {[%emt 0:00:03]} d5 {[%emt 0:00:03]} 3. Nc3 {[%emt 0:00:03]} dxe4 4. Nxe4 {[%emt 0:00:03]} Bf5 {[%emt 0:00:06]} 5. Ng3 {[%emt 0:00:03]} Bg6 6. h4 {[%emt 0:00:03]} h6 7. h5 {[%emt 0:00:03]} Bh7 {[%emt 0:00:09]} 8. Nf3 {[%emt 0:00:03]} Nd7 {[%emt 0:00:03]} 9. Bd3 {[%emt 0:00:03]} Bxd3 {[%emt 0:00:03]} 10. Qxd3 {[%emt 0:00:03]} e6 11. Bd2 {[%emt 0:00:03]} Ngf6 {[%emt 0:00:06]} 12. O-O-O {[%emt 0:00:03]} Be7 {[%emt 0:00:03]} 13. Kb1 {[%emt 0:00:03]} Qb6 {[%emt 0:00:03]} 14. Qb3 {[%emt 0:00:03]} O-O-O {[%emt 0:00:03]} 15. Qxb6 {[%emt 0:00:03]} Nxb6 {[%emt 0:00:03]} 16. Be3 {[%emt 0:00:03]} Bd6 {[%emt 0:00:03]} 17. Ne5 {[%emt 0:00:03]} Bxe5 {[%emt 0:00:03]} 18. dxe5 {[%emt 0:00:03]} Ng4 {[%emt 0:00:03]} 19. Bxb6 {[%emt 0:00:03]} axb6 {[%emt 0:00:03]} 20. Rxd8+ {[%emt 0:00:03]} Rxd8 21. Ne4 {[%emt 0:00:03]} Rd4 {[%emt 0:00:06]} 22. Nd6+ {[%emt 0:00:03]} Kc7 {[%emt 0:00:03]} 23. Nxf7 {[%emt 0:00:03]} Rf4 {[%emt 0:00:03]} 24. Nd6 {[%emt 0:00:03]} Rxf2 {[%emt 0:00:03]} 25. Ne4 {[%emt 0:00:03]} Re2 {[%emt 0:00:03]} 26. Nc3 {[%emt 0:00:03]} Rxe5 {[%emt 0:00:03]} 27. Rf1 {[%emt 0:00:03]} Nf6 {[%emt 0:00:03]} 28. b3 {[%emt 0:00:03]} Rxh5 {[%emt 0:00:03]} 29. Re1 {[%emt 0:00:03]} e5 {[%emt 0:00:03]} 30. Rg1 {[%emt 0:00:03]} Rg5 {[%emt 0:00:03]} 31. Re1 {[%emt 0:00:03]} e4 {[%emt 0:00:03]} 32. Kc1 {[%emt 0:00:03]} Rxg2 {[%emt 0:00:03]} 33. Nxe4 {[%emt 0:00:03]} Nxe4 34. Rxe4 {[%emt 0:00:03]} b5 {[%emt 0:00:06]} 35. Kb2 {[%emt 0:00:03]} h5 {[%emt 0:00:03]} 36. Rh4 g6 {[%emt 0:00:03]} 37. Rf4 {[%emt 0:00:06]} g5 {[%emt 0:00:03]} 38. Rf5 {[%emt 0:00:03]} h4 {[%emt 0:00:03]} 39. Rf7+ {[%emt 0:00:03]} Kb6 {[%emt 0:00:03]} 40. Rh7 {[%emt 0:00:03]} Rg3 {[%emt 0:00:03]} 41. Kc1 {[%emt 0:00:03]} h3 {[%emt 0:00:03]} 42. Kd1 {[%emt 0:00:03]} g4 {[%emt 0:00:03]} 43. Ke1 {[%emt 0:00:03]} Rg2 {[%emt 0:00:03]} 44. Kf1 {[%emt 0:00:03]} Rxc2 {[%emt 0:00:03]} 45. Rh4 {[%emt 0:00:03]} Rg2 {[%emt 0:00:03]} 46. a3 {[%emt 0:00:03]} Rg3 {[%emt 0:00:03]} 47. Kf2 {[%emt 0:00:03]} Rxb3 {[%emt 0:00:03]} 48. Rxg4 {[%emt 0:00:03]} h2 {[%emt 0:00:03]} 49. Rh4 {[%emt 0:00:03]} Rxa3 {[%emt 0:00:03]} 50. Kg2 {[%emt 0:00:03]} Ra2+ 51. Kh1 {[%emt 0:00:03]} Rc2 {[%emt 0:00:06]} 52. Rh6 {[%emt 0:00:03]} b4 {[%emt 0:00:03]} 53. Rxc6+ {[%emt 0:00:03] Rc3 Rc4 Rxc4 Kxh2} Rxc6 0-1

[Event "Djerba Festival Blitz 2025"]
[Site "Djerba"]
[Date "2025.02.21"]
[Round "8.44"]
[White "Doucet, Jean Gabriel"]
[Black "Chaudesaygues, Hugo"]
[Result "0-1"]
[ECO "C44"]
[WhiteElo "1506"]
[BlackElo "1624"]
[PlyCount "84"]
[EventDate "2025.02.15"]
[EventType "swiss"]
[EventCountry "TUN"]
[TimeControl "180+3"]

1. e4 {[%emt 0:00:03]} e5 {[%emt 0:00:03]} 2. Nf3 {[%emt 0:00:02]} Nc6 {[%emt 0:00:01]} 3. d4 {[%emt 0:00:02]} exd4 {[%emt 0:00:03]} 4. Bc4 {[%emt 0:00:02]} d6 {[%emt 0:00:02]} 5. O-O {[%emt 0:00:04]} Bg4 {[%emt 0:00:04]} 6. h3 {[%emt 0:00:02]} Bxf3 {[%emt 0:00:07]} 7. Qxf3 {[%emt 0:00:02]} Qf6 {[%emt 0:00:02]} 8. Qxf6 {[%emt 0:00:04]} Nxf6 {[%emt 0:00:03]} 9. Re1 {[%emt 0:00:02]} Nd7 {[%emt 0:00:29]} 10. Bf4 {[%emt 0:00:10]} Nde5 {[%emt 0:00:05]} 11. Bxe5 {[%emt 0:00:04]} Nxe5 {[%emt 0:00:05]} 12. Bb3 {[%emt 0:00:07]} c5 {[%emt 0:00:07]} 13. Bd5 {[%emt 0:00:03]} Rb8 {[%emt 0:00:11]} 14. Na3 {[%emt 0:00:06]} f6 {[%emt 0:00:14]} 15. Nb5 {[%emt 0:00:04]} a6 {[%emt 0:00:10]} 16. Nc7+ {[%emt 0:00:11]} Kd7 {[%emt 0:00:05]} 17. Ne6 {[%emt 0:00:11]} b5 {[%emt 0:00:10]} 18. b3 {[%emt 0:00:02]} Re8 {[%emt 0:00:08]} 19. Nf4 {[%emt 0:00:08]} g5 {[%emt 0:00:03]} 20. Nd3 {[%emt 0:00:02]} Nc6 {[%emt 0:00:11]} 21. a3 {[%emt 0:00:17]} Ne5 {[%emt 0:00:03]} 22. Rac1 {[%emt 0:00:14]} c4 {[%emt 0:00:02]} 23. bxc4 {[%emt 0:00:03]} Nxc4 {[%emt 0:00:05]} 24. Bxc4 {[%emt 0:00:14]} bxc4 {[%emt 0:00:02]} 25. Nb4 {[%emt 0:00:02]} Ra8 {[%emt 0:00:06]} 26. Rcd1 {[%emt 0:00:09]} a5 {[%emt 0:00:06]} 27. Nd5 {[%emt 0:00:03]} Bg7 {[%emt 0:00:15]} 28. Nb6+ {[%emt 0:00:03]} Kc6 {[%emt 0:00:03]} 29. Nxa8 {[%emt 0:00:02]} Rxa8 {[%emt 0:00:05]} 30. Rxd4 {[%emt 0:00:03]} f5 {[%emt 0:00:02]} 31. Rxc4+ {[%emt 0:00:03]} Kb5 {[%emt 0:00:05]} 32. Rc7 {[%emt 0:00:05]} Bd4 {[%emt 0:00:08]} 33. exf5 {[%emt 0:00:04]} h5 {[%emt 0:00:09]} 34. Rb1+ {[%emt 0:00:13]} Ka6 {[%emt 0:00:07]} 35. Rc6+ {[%emt 0:00:05]} Ka7 {[%emt 0:00:07]} 36. Rxd6 {[%emt 0:00:03]} Be5 {[%emt 0:00:14]} 37. Rd5 {[%emt 0:00:06]} Bc7 {[%emt 0:00:08]} 38. f6 {[%emt 0:00:03]} Re8 {[%emt 0:00:09]} 39. Rxg5 {[%emt 0:00:09]} Ka6 {[%emt 0:00:07]} 40. Rxh5 {[%emt 0:00:04]} Bb8 {[%emt 0:00:05]} 41. Rh6 {[%emt 0:00:04]} Ka7 {[%emt 0:00:04]} 42. Rb5 {[%emt 0:00:16]} Re1# {[%emt 0:00:03]} 0-1

[Event "Djerba Festival Blitz 2025"]
[Site "Djerba"]
[Date "2025.02.21"]
[Round "8.45"]
[White "Raymond, Andre"]
[Black "Mallah, Abderrahmane"]
[Result "0-1"]
[ECO "B13"]
[WhiteElo "1610"]
[BlackElo "1556"]
[PlyCount "55"]
[EventDate "2025.02.15"]
[EventType "swiss"]
[EventCountry "TUN"]
[TimeControl "180+3"]

1. e4 {[%emt 0:03:06]} c6 {[%emt 0:03:06]} 2. c3 {[%emt 0:00:03]} d5 3. exd5 {[%emt 0:00:03]} cxd5 {[%emt 0:00:06]} 4. d4 Nf6 {[%emt 0:00:03]} 5. Nf3 {[%emt 0:00:06]} Bg4 {[%emt 0:00:03]} 6. Be2 e6 {[%emt 0:00:03]} 7. O-O {[%emt 0:00:06]} Bd6 8. h3 {[%emt 0:00:03]} Bh5 {[%emt 0:00:06]} 9. Ne5 {[%emt 0:00:03]} Bxe2 {[%emt 0:00:03]} 10. Qxe2 {[%emt 0:00:03]} O-O {[%emt 0:00:03]} 11. Bg5 {[%emt 0:00:03]} h6 {[%emt 0:00:03]} 12. Bh4 {[%emt 0:00:03]} Be7 {[%emt 0:00:03]} 13. Nd2 {[%emt 0:00:03]} Nbd7 {[%emt 0:00:03]} 14. Ndf3 {[%emt 0:00:03]} Ne4 {[%emt 0:00:03]} 15. Bxe7 {[%emt 0:00:03]} Qxe7 {[%emt 0:00:03]} 16. Nxd7 {[%emt 0:00:03]} Qxd7 {[%emt 0:00:03]} 17. Ne5 {[%emt 0:00:03]} Qd6 {[%emt 0:00:03]} 18. c4 {[%emt 0:00:03]} Rac8 {[%emt 0:00:03]} 19. c5 {[%emt 0:00:03]} Qe7 {[%emt 0:00:03]} 20. a3 {[%emt 0:00:03]} b6 {[%emt 0:00:03]} 21. b4 {[%emt 0:00:03]} bxc5 {[%emt 0:00:03]} 22. bxc5 {[%emt 0:00:03]} Qh4 {[%emt 0:00:03]} 23. Nf3 {[%emt 0:00:03]} Qe7 {[%emt 0:00:03]} 24. Rac1 {[%emt 0:00:03]} Ng5 {[%emt 0:00:03]} 25. Nxg5 {[%emt 0:00:03]} Qxg5 {[%emt 0:00:03]} 26. Qb5 {[%emt 0:00:03]} Qf4 {[%emt 0:00:03]} 27. Qd3 {[%emt 0:00:03]} Rc6 {[%emt 0:00:03]} 28. Qe3 {[%emt 0:00:03]} 0-1

[Event "Djerba Festival Blitz 2025"]
[Site "Djerba"]
[Date "2025.02.21"]
[Round "8.49"]
[White "Hinard, Jeremy"]
[Black "Alkortabi, Ahmed B."]
[Result "1-0"]
[ECO "A40"]
[WhiteElo "1609"]
[BlackElo "1906"]
[PlyCount "61"]
[EventDate "2025.02.15"]
[EventType "swiss"]
[EventCountry "TUN"]
[TimeControl "180+3"]

1. d4 {[%emt 0:00:03]} e5 {[%emt 0:00:04]} 2. dxe5 {[%emt 0:00:02]} Nc6 {[%emt 0:00:04]} 3. Nf3 {[%emt 0:00:03]} b6 {[%emt 0:00:04]} 4. a3 {[%emt 0:00:11]} Nge7 {[%emt 0:00:03]} 5. b4 {[%emt 0:00:11]} g6 {[%emt 0:00:03]} 6. Bb2 {[%emt 0:00:02]} Bg7 {[%emt 0:00:03]} 7. e3 {[%emt 0:00:11]} Bb7 {[%emt 0:00:05]} 8. Be2 {[%emt 0:00:03]} O-O {[%emt 0:00:03]} 9. O-O {[%emt 0:00:14]} d6 {[%emt 0:00:03]} 10. exd6 {[%emt 0:00:05]} cxd6 {[%emt 0:00:04]} 11. Bxg7 {[%emt 0:00:06]} Kxg7 {[%emt 0:00:03]} 12. c4 {[%emt 0:00:32]} d5 {[%emt 0:00:12]} 13. cxd5 {[%emt 0:00:04]} Nxd5 {[%emt 0:00:05]} 14. Qb3 {[%emt 0:00:21]} Qf6 {[%emt 0:00:09]} 15. Nd4 {[%emt 0:00:16]} Nxd4 {[%emt 0:00:04]} 16. exd4 {[%emt 0:00:10]} Qxd4 {[%emt 0:00:03]} 17. Ra2 {[%emt 0:00:12]} Ne3 {[%emt 0:00:05]} 18. fxe3 {[%emt 0:00:13]} Qd7 {[%emt 0:00:01]} 19. Bf3 {[%emt 0:00:05]} Bxf3 {[%emt 0:00:06]} 20. Rxf3 {[%emt 0:00:05]} Rac8 {[%emt 0:00:11]} 21. Rd2 {[%emt 0:00:07]} Rc1+ {[%emt 0:00:21]} 22. Rf1 {[%emt 0:00:17]} Qc6 {[%emt 0:00:28]} 23. Rxc1 {[%emt 0:00:03]} Qb5 {[%emt 0:00:07]} 24. Rd5 {[%emt 0:00:14]} Qc6 {[%emt 0:00:04]} 25. Rxc6 {[%emt 0:00:04]} Re8 {[%emt 0:00:03]} 26. Rd7 {[%emt 0:00:03]} Kh6 {[%emt 0:00:03]} 27. Qxf7 {[%emt 0:00:03]} Rxe3 {[%emt 0:00:05]} 28. Qxh7+ {[%emt 0:00:04]} Kg5 {[%emt 0:00:03]} 29. Rd5+ {[%emt 0:00:04]} Kg4 {[%emt 0:00:02]} 30. Qxg6+ {[%emt 0:00:03]} Kh4 {[%emt 0:00:04]} 31. Rh5# {[%emt 0:00:03]} 1-0